[Event "Titled Tuesday Blitz June 28 Early 2022"]
[White "Valle Maytin, Luis Enrique"]
[Black "De La Colina, Nicolas"]
[WhiteFideId "3503666"]
[BlackFideId "30946921"]
[WhiteElo "2329"]
[BlackElo "2046"]
[Result "0-1"]
[Round "05"]
[TimeControl "180+1"]
[Date "2022.06.28"]
[WhiteClock "0:01:27"]
[BlackClock "0:02:05"]

1. e4 {[%clk 0:02:24]}  c5 {[%clk 0:02:59]} 2. Nf3 {[%clk 0:02:24]}  Nc6 {[%clk 0:02:59]} 3. d4 {[%clk 0:02:23]}  cxd4 {[%clk 0:03:00]} 4. Nxd4 {[%clk 0:02:24]}  Nf6 {[%clk 0:03:00]} 5. Nc3 {[%clk 0:02:24]}  d6 {[%clk 0:03:00]} 6. Bg5 {[%clk 0:02:23]}  Bd7 {[%clk 0:03:00]} 7. f4 {[%clk 0:02:23]}  h6 {[%clk 0:02:56]} 8. Bxf6 {[%clk 0:02:23]}  gxf6 {[%clk 0:02:57]} 9. Qd2 {[%clk 0:02:23]}  Rc8 {[%clk 0:02:55]} 10. O-O-O {[%clk 0:02:23]}  Nxd4 {[%clk 0:02:55]} 11. Qxd4 {[%clk 0:02:23]}  Qa5 {[%clk 0:02:56]} 12. Bc4 {[%clk 0:02:18]}  Qc5 {[%clk 0:02:55]} 13. Bb3 {[%clk 0:02:14]}  Qxd4 {[%clk 0:02:39]} 14. Rxd4 {[%clk 0:02:13]}  f5 {[%clk 0:02:40]} 15. e5 {[%clk 0:02:09]}  Bg7 {[%clk 0:02:40]} 16. Re1 {[%clk 0:02:07]}  Bc6 {[%clk 0:02:35]} 17. g3 {[%clk 0:02:03]}  dxe5 {[%clk 0:02:27]} 18. fxe5 {[%clk 0:02:01]}  e6 {[%clk 0:02:25]} 19. Bc4 {[%clk 0:01:48]}  a6 {[%clk 0:02:19]} 20. a4 {[%clk 0:01:43]}  Ke7 {[%clk 0:02:15]} 21. a5 {[%clk 0:01:41]}  Rhd8 {[%clk 0:02:13]} 22. Rxd8 {[%clk 0:01:39]}  Rxd8 {[%clk 0:02:14]} 23. b4 {[%clk 0:01:38]}  Rd4 {[%clk 0:02:10]} 24. b5 {[%clk 0:01:27]}  Rxc4 {[%clk 0:02:07]} 25. b6 {[%clk 0:01:27]}  Rxc3 {[%clk 0:02:05]} 0-1


[Site "https://www.chess.com"]

[Event "Titled Tuesday Blitz June 28 Early 2022"]
[White "Van Foreest, Jorden"]
[Black "Le, Quang Liem"]
[WhiteFideId "1039784"]
[BlackFideId "12401137"]
[WhiteElo "2609"]
[BlackElo "2657"]
[Result "1-0"]
[Round "05"]
[TimeControl "180+1"]
[Date "2022.06.28"]
[WhiteClock "0:00:17"]
[BlackClock "0:00:01"]

1. d4 {[%clk 0:03:00]}  Nf6 {[%clk 0:02:59]} 2. c4 {[%clk 0:03:01]}  g6 {[%clk 0:03:00]} 3. Nf3 {[%clk 0:03:00]}  Bg7 {[%clk 0:03:00]} 4. Nc3 {[%clk 0:03:00]}  O-O {[%clk 0:03:00]} 5. e4 {[%clk 0:03:00]}  d6 {[%clk 0:03:01]} 6. Be2 {[%clk 0:02:58]}  e5 {[%clk 0:02:58]} 7. O-O {[%clk 0:02:55]}  Nc6 {[%clk 0:02:57]} 8. dxe5 {[%clk 0:02:54]}  dxe5 {[%clk 0:02:55]} 9. Bg5 {[%clk 0:02:54]}  Qxd1 {[%clk 0:02:28]} 10. Rfxd1 {[%clk 0:02:51]}  Be6 {[%clk 0:02:29]} 11. Nd5 {[%clk 0:02:43]}  Nxe4 {[%clk 0:02:02]} 12. Nxc7 {[%clk 0:02:42]}  Rac8 {[%clk 0:02:02]} 13. Nxe6 {[%clk 0:02:42]}  fxe6 {[%clk 0:02:03]} 14. Be3 {[%clk 0:02:42]}  Rfd8 {[%clk 0:02:01]} 15. Bd3 {[%clk 0:02:32]}  Nd6 {[%clk 0:01:40]} 16. Ng5 {[%clk 0:02:30]}  e4 {[%clk 0:01:40]} 17. Nxe4 {[%clk 0:02:14]}  Nxe4 {[%clk 0:01:31]} 18. Bxe4 {[%clk 0:02:14]}  Bxb2 {[%clk 0:01:32]} 19. Rab1 {[%clk 0:02:11]}  Rxd1+ {[%clk 0:01:29]} 20. Rxd1 {[%clk 0:02:10]}  Rc7 {[%clk 0:01:19]} 21. Bxc6 {[%clk 0:01:56]}  bxc6 {[%clk 0:01:14]} 22. Bc5 {[%clk 0:01:52]}  Bf6 {[%clk 0:01:10]} 23. Kf1 {[%clk 0:01:48]}  Kf7 {[%clk 0:01:11]} 24. Rb1 {[%clk 0:01:46]}  Be7 {[%clk 0:01:10]} 25. Be3 {[%clk 0:01:45]}  e5 {[%clk 0:00:55]} 26. Ke2 {[%clk 0:01:43]}  e4 {[%clk 0:00:51]} 27. Rb8 {[%clk 0:01:35]}  c5 {[%clk 0:00:47]} 28. Bf4 {[%clk 0:01:27]}  Rd7 {[%clk 0:00:44]} 29. Be3 {[%clk 0:01:19]}  Ke6 {[%clk 0:00:38]} 30. Rb5 {[%clk 0:01:13]}  Rd3 {[%clk 0:00:32]} 31. Ra5 {[%clk 0:01:00]}  Rc3 {[%clk 0:00:29]} 32. Ra4 {[%clk 0:00:59]}  Rc2+ {[%clk 0:00:16]} 33. Kd1 {[%clk 0:00:59]}  Rb2 {[%clk 0:00:17]} 34. Rxa7 {[%clk 0:00:58]}  Bd6 {[%clk 0:00:13]} 35. a3 {[%clk 0:00:31]}  Ra2 {[%clk 0:00:10]} 36. h3 {[%clk 0:00:25]}  h5 {[%clk 0:00:09]} 37. a4 {[%clk 0:00:24]}  Ra3 {[%clk 0:00:02]} 38. Kc2 {[%clk 0:00:22]}  Be5 {[%clk 0:00:02]} 39. Bxc5 {[%clk 0:00:19]}  Rc3+ {[%clk 0:00:02]} 40. Kd2 {[%clk 0:00:20]}  Rxc4 {[%clk 0:00:02]} 41. Bb6 {[%clk 0:00:20]}  Kf5 {[%clk 0:00:02]} 42. a5 {[%clk 0:00:19]}  Ra4 {[%clk 0:00:02]} 43. Kc2 {[%clk 0:00:19]}  Ra2+ {[%clk 0:00:03]} 44. Kb3 {[%clk 0:00:19]}  Rb2+ {[%clk 0:00:03]} 45. Kc4 {[%clk 0:00:19]}  Rc2+ {[%clk 0:00:03]} 46. Kb5 {[%clk 0:00:19]}  Rb2+ {[%clk 0:00:02]} 47. Kc6 {[%clk 0:00:20]}  Rc2+ {[%clk 0:00:02]} 48. Kd7 {[%clk 0:00:20]}  Rb2 {[%clk 0:00:02]} 49. Be3 {[%clk 0:00:19]}  Bf4 {[%clk 0:00:02]} 50. Bc5 {[%clk 0:00:17]}  Rc2 {[%clk 0:00:02]} 51. Bb6 {[%clk 0:00:16]}  Rb2 {[%clk 0:00:02]} 52. Ra8 {[%clk 0:00:17]}  Be5 {[%clk 0:00:02]} 53. Rf8+ {[%clk 0:00:17]}  Kg5 {[%clk 0:00:02]} 54. Be3+ {[%clk 0:00:17]}  Kh4 {[%clk 0:00:03]} 55. a6 {[%clk 0:00:17]}  Ra2 {[%clk 0:00:02]} 56. a7 {[%clk 0:00:17]}  g5 {[%clk 0:00:01]} 57. a8=Q {[%clk 0:00:17]} 1-0


[Site "https://www.chess.com"]

[Event "Titled Tuesday Blitz June 28 Early 2022"]
[White "Vidonyak, Roman"]
[Black "Tasev, Dejan"]
[WhiteFideId "14100622"]
[BlackFideId "936618"]
[WhiteElo "2337"]
[BlackElo "2253"]
[Result "0-1"]
[Round "05"]
[TimeControl "180+1"]
[Date "2022.06.28"]
[WhiteClock "0:00:01"]
[BlackClock "0:00:25"]

1. d4 {[%clk 0:03:00]}  Nf6 {[%clk 0:02:58]} 2. c4 {[%clk 0:03:01]}  g6 {[%clk 0:02:58]} 3. h4 {[%clk 0:03:01]}  h5 {[%clk 0:02:58]} 4. Nc3 {[%clk 0:03:00]}  Bg7 {[%clk 0:02:58]} 5. e4 {[%clk 0:03:01]}  d6 {[%clk 0:02:58]} 6. Be2 {[%clk 0:03:01]}  O-O {[%clk 0:02:58]} 7. Bg5 {[%clk 0:03:01]}  Nbd7 {[%clk 0:02:58]} 8. Qd2 {[%clk 0:02:24]}  c5 {[%clk 0:02:54]} 9. d5 {[%clk 0:02:23]}  a6 {[%clk 0:02:53]} 10. a4 {[%clk 0:02:22]}  Ne5 {[%clk 0:02:49]} 11. Nh3 {[%clk 0:02:15]}  b6 {[%clk 0:02:26]} 12. Bh6 {[%clk 0:01:57]}  Bd7 {[%clk 0:02:17]} 13. Bxg7 {[%clk 0:01:56]}  Kxg7 {[%clk 0:02:16]} 14. O-O {[%clk 0:01:56]}  Bxh3 {[%clk 0:01:53]} 15. gxh3 {[%clk 0:01:57]}  Qc8 {[%clk 0:01:51]} 16. f4 {[%clk 0:01:39]}  Qxh3 {[%clk 0:01:39]} 17. fxe5 {[%clk 0:01:39]}  Qg3+ {[%clk 0:01:38]} 18. Kh1 {[%clk 0:01:39]}  Qxh4+ {[%clk 0:01:38]} 19. Kg1 {[%clk 0:01:39]}  Qg3+ {[%clk 0:01:36]} 20. Kh1 {[%clk 0:01:39]}  Ng4 {[%clk 0:01:36]} 21. Bf3 {[%clk 0:01:26]}  Qxe5 {[%clk 0:01:24]} 22. Rae1 {[%clk 0:01:20]}  Qg3 {[%clk 0:01:15]} 23. Qg2 {[%clk 0:01:16]}  Qxg2+ {[%clk 0:01:11]} 24. Kxg2 {[%clk 0:01:17]}  Ne5 {[%clk 0:01:11]} 25. b3 {[%clk 0:01:10]}  a5 {[%clk 0:00:58]} 26. Bd1 {[%clk 0:00:59]}  Rh8 {[%clk 0:00:51]} 27. Kh3 {[%clk 0:00:45]}  Raf8 {[%clk 0:00:47]} 28. Re3 {[%clk 0:00:36]}  f6 {[%clk 0:00:37]} 29. Nb5 {[%clk 0:00:23]}  g5 {[%clk 0:00:33]} 30. Nc7 {[%clk 0:00:21]}  g4+ {[%clk 0:00:32]} 31. Kh2 {[%clk 0:00:20]}  Kg6 {[%clk 0:00:30]} 32. Ne6 {[%clk 0:00:20]}  Rfg8 {[%clk 0:00:30]} 33. Rf5 {[%clk 0:00:17]}  Kf7 {[%clk 0:00:29]} 34. Re1 {[%clk 0:00:14]}  h4 {[%clk 0:00:29]} 35. Ref1 {[%clk 0:00:04]}  g3+ {[%clk 0:00:30]} 36. Kg1 {[%clk 0:00:03]}  h3 {[%clk 0:00:28]} 37. Ng5+ {[%clk 0:00:04]}  Ke8 {[%clk 0:00:28]} 38. Nxh3 {[%clk 0:00:04]}  Rxh3 {[%clk 0:00:28]} 39. Bh5+ {[%clk 0:00:03]}  Kd8 {[%clk 0:00:27]} 40. Be2 {[%clk 0:00:01]}  g2 {[%clk 0:00:26]} 41. R1f2 {[%clk 0:00:01]}  Rh1# {[%clk 0:00:25]} 0-1


[Site "https://www.chess.com"]

[Event "Titled Tuesday Blitz June 28 Early 2022"]
[White "Vokhidov, Shamsiddin"]
[Black "Cherniaiev, Tykhon"]
[WhiteFideId "14204223"]
[BlackFideId "14182360"]
[WhiteElo "2611"]
[BlackElo "2289"]
[Result "0-1"]
[Round "05"]
[TimeControl "180+1"]
[Date "2022.06.28"]
[WhiteClock "0:00:20"]
[BlackClock "0:00:24"]

1. e4 {[%clk 0:03:00]}  c5 {[%clk 0:02:59]} 2. Nf3 {[%clk 0:03:01]}  e6 {[%clk 0:02:59]} 3. g3 {[%clk 0:02:59]}  d5 {[%clk 0:02:59]} 4. exd5 {[%clk 0:02:58]}  exd5 {[%clk 0:02:59]} 5. d4 {[%clk 0:02:59]}  cxd4 {[%clk 0:02:59]} 6. Nxd4 {[%clk 0:02:56]}  Nf6 {[%clk 0:02:59]} 7. Bg2 {[%clk 0:02:56]}  Be7 {[%clk 0:02:59]} 8. O-O {[%clk 0:02:57]}  O-O {[%clk 0:03:00]} 9. Nc3 {[%clk 0:02:56]}  Nc6 {[%clk 0:03:01]} 10. h3 {[%clk 0:02:50]}  a6 {[%clk 0:02:59]} 11. Re1 {[%clk 0:02:50]}  Re8 {[%clk 0:02:54]} 12. Bf4 {[%clk 0:02:37]}  Nxd4 {[%clk 0:02:49]} 13. Qxd4 {[%clk 0:02:37]}  Be6 {[%clk 0:02:49]} 14. Rad1 {[%clk 0:02:36]}  Qc8 {[%clk 0:02:31]} 15. g4 {[%clk 0:02:28]}  Bc5 {[%clk 0:02:28]} 16. Qd2 {[%clk 0:02:23]}  d4 {[%clk 0:02:20]} 17. Ne2 {[%clk 0:02:24]}  Bd5 {[%clk 0:01:52]} 18. Nxd4 {[%clk 0:02:16]}  Bxg2 {[%clk 0:01:50]} 19. Kxg2 {[%clk 0:02:17]}  Bxd4 {[%clk 0:01:48]} 20. Rxe8+ {[%clk 0:02:05]}  Qxe8 {[%clk 0:01:45]} 21. Qxd4 {[%clk 0:02:06]}  Qc6+ {[%clk 0:01:45]} 22. Kh2 {[%clk 0:02:01]}  h6 {[%clk 0:01:43]} 23. Be5 {[%clk 0:01:47]}  Qxc2 {[%clk 0:01:37]} 24. Bxf6 {[%clk 0:01:42]}  gxf6 {[%clk 0:01:37]} 25. Rd3 {[%clk 0:01:37]}  Kg7 {[%clk 0:01:11]} 26. Rf3 {[%clk 0:01:31]}  Qc7+ {[%clk 0:01:10]} 27. Kg1 {[%clk 0:01:25]}  Qc1+ {[%clk 0:01:08]} 28. Kg2 {[%clk 0:01:25]}  Qc6 {[%clk 0:01:08]} 29. Kg3 {[%clk 0:01:20]}  Re8 {[%clk 0:01:05]} 30. Rc3 {[%clk 0:01:12]}  Qh1 {[%clk 0:00:50]} 31. Rf3 {[%clk 0:01:11]}  Re6 {[%clk 0:00:50]} 32. Rf4 {[%clk 0:00:50]}  Qg1+ {[%clk 0:00:45]} 33. Kh4 {[%clk 0:00:50]}  Qg2 {[%clk 0:00:34]} 34. a3 {[%clk 0:00:49]}  Re5 {[%clk 0:00:34]} 35. Rxf6 {[%clk 0:00:35]}  Rh5+ {[%clk 0:00:25]} 36. gxh5 {[%clk 0:00:20]}  Qg5# {[%clk 0:00:24]} 0-1


[Site "https://www.chess.com"]

[Event "Titled Tuesday Blitz June 28 Early 2022"]
[White "Winkels, Marcel"]
[Black "Boraso, Alessio"]
[WhiteFideId "1003887"]
[BlackFideId "848077"]
[WhiteElo "1900"]
[BlackElo "2286"]
[Result "0-1"]
[Round "05"]
[TimeControl "180+1"]
[Date "2022.06.28"]
[WhiteClock "0:00:05"]
[BlackClock "0:00:39"]

1. e4 {[%clk 0:03:00]}  Nf6 {[%clk 0:02:56]} 2. e5 {[%clk 0:03:00]}  Ng8 {[%clk 0:02:57]} 3. d4 {[%clk 0:03:00]}  d5 {[%clk 0:02:57]} 4. Nf3 {[%clk 0:02:52]}  Bg4 {[%clk 0:02:56]} 5. Be2 {[%clk 0:02:52]}  e6 {[%clk 0:02:56]} 6. O-O {[%clk 0:02:51]}  c5 {[%clk 0:02:56]} 7. c3 {[%clk 0:02:50]}  Nc6 {[%clk 0:02:55]} 8. Be3 {[%clk 0:02:46]}  Nh6 {[%clk 0:02:53]} 9. Bxh6 {[%clk 0:02:35]}  gxh6 {[%clk 0:02:53]} 10. Na3 {[%clk 0:02:30]}  cxd4 {[%clk 0:02:52]} 11. cxd4 {[%clk 0:02:29]}  Bxa3 {[%clk 0:02:51]} 12. bxa3 {[%clk 0:02:28]}  Bxf3 {[%clk 0:02:50]} 13. Bxf3 {[%clk 0:02:27]}  Qh4 {[%clk 0:02:49]} 14. Rb1 {[%clk 0:02:09]}  Rb8 {[%clk 0:02:22]} 15. Qd2 {[%clk 0:01:46]}  Nxd4 {[%clk 0:02:08]} 16. Bd1 {[%clk 0:01:44]}  Nf5 {[%clk 0:02:04]} 17. g3 {[%clk 0:01:33]}  Qd4 {[%clk 0:01:56]} 18. Qa5 {[%clk 0:01:18]}  O-O {[%clk 0:01:50]} 19. Re1 {[%clk 0:01:10]}  a6 {[%clk 0:01:35]} 20. Bc2 {[%clk 0:01:08]}  Qg4 {[%clk 0:01:25]} 21. Bxf5 {[%clk 0:01:00]}  Qxf5 {[%clk 0:01:24]} 22. Rec1 {[%clk 0:01:00]}  Rbc8 {[%clk 0:01:20]} 23. Qe1 {[%clk 0:00:47]}  b5 {[%clk 0:01:14]} 24. f4 {[%clk 0:00:37]}  Rc4 {[%clk 0:01:11]} 25. Rxc4 {[%clk 0:00:31]}  dxc4 {[%clk 0:01:11]} 26. Rd1 {[%clk 0:00:28]}  Rc8 {[%clk 0:01:08]} 27. Qb4 {[%clk 0:00:25]}  c3 {[%clk 0:01:03]} 28. Qe7 {[%clk 0:00:19]}  c2 {[%clk 0:00:58]} 29. Rd8+ {[%clk 0:00:17]}  Rxd8 {[%clk 0:00:56]} 30. Qxd8+ {[%clk 0:00:18]}  Kg7 {[%clk 0:00:57]} 31. Qc7 {[%clk 0:00:17]}  Qd3 {[%clk 0:00:41]} 32. Qe7 {[%clk 0:00:07]}  c1=Q+ {[%clk 0:00:39]} 33. Kf2 {[%clk 0:00:05]} 0-1


[Site "https://www.chess.com"]

[Event "Titled Tuesday Blitz June 28 Early 2022"]
[White "Yaksin, Oleg"]
[Black "Oliveira, Jonathan De"]
[WhiteFideId "24105880"]
[BlackFideId "2180820"]
[WhiteElo "2256"]
[BlackElo "2075"]
[Result "1-0"]
[Round "05"]
[TimeControl "180+1"]
[Date "2022.06.28"]
[WhiteClock "0:00:22"]
[BlackClock "0:01:45"]

1. d4 {[%clk 0:00:52]}  e6 {[%clk 0:03:00]} 2. c4 {[%clk 0:00:50]}  d5 {[%clk 0:03:00]} 3. g3 {[%clk 0:00:48]}  Nf6 {[%clk 0:03:01]} 4. Nf3 {[%clk 0:00:48]}  Be7 {[%clk 0:03:01]} 5. Bg2 {[%clk 0:00:49]}  O-O {[%clk 0:03:02]} 6. O-O {[%clk 0:00:49]}  dxc4 {[%clk 0:03:03]} 7. Qc2 {[%clk 0:00:50]}  a6 {[%clk 0:03:03]} 8. a4 {[%clk 0:00:49]}  Bd7 {[%clk 0:03:03]} 9. Rd1 {[%clk 0:00:49]}  Bc6 {[%clk 0:03:02]} 10. Nc3 {[%clk 0:00:50]}  Bxf3 {[%clk 0:03:00]} 11. Bxf3 {[%clk 0:00:51]}  Nc6 {[%clk 0:02:57]} 12. Bxc6 {[%clk 0:00:51]}  bxc6 {[%clk 0:02:57]} 13. Bg5 {[%clk 0:00:52]}  Qb8 {[%clk 0:02:52]} 14. Bxf6 {[%clk 0:00:47]}  Bxf6 {[%clk 0:02:51]} 15. Ne4 {[%clk 0:00:43]}  Qb3 {[%clk 0:02:49]} 16. Qxb3 {[%clk 0:00:38]}  cxb3 {[%clk 0:02:49]} 17. e3 {[%clk 0:00:38]}  e5 {[%clk 0:02:17]} 18. dxe5 {[%clk 0:00:29]}  Bxe5 {[%clk 0:02:16]} 19. Rd3 {[%clk 0:00:29]}  Rab8 {[%clk 0:02:10]} 20. Rc1 {[%clk 0:00:25]}  Bxb2 {[%clk 0:02:05]} 21. Rb1 {[%clk 0:00:26]}  Be5 {[%clk 0:02:01]} 22. Rdxb3 {[%clk 0:00:26]}  Rxb3 {[%clk 0:01:56]} 23. Rxb3 {[%clk 0:00:27]}  f5 {[%clk 0:01:54]} 24. Nc5 {[%clk 0:00:26]}  Bd6 {[%clk 0:01:46]} 25. Nxa6 {[%clk 0:00:25]}  Ra8 {[%clk 0:01:46]} 26. Rb8+ {[%clk 0:00:24]}  Rxb8 {[%clk 0:01:46]} 27. Nxb8 {[%clk 0:00:25]}  Kf7 {[%clk 0:01:36]} 28. a5 {[%clk 0:00:17]}  Ke6 {[%clk 0:01:34]} 29. a6 {[%clk 0:00:16]}  Bc5 {[%clk 0:01:34]} 30. Nxc6 {[%clk 0:00:16]}  Kd5 {[%clk 0:01:35]} 31. a7 {[%clk 0:00:16]}  Bxa7 {[%clk 0:01:35]} 32. Nxa7 {[%clk 0:00:17]}  c5 {[%clk 0:01:36]} 33. Kf1 {[%clk 0:00:17]}  c4 {[%clk 0:01:35]} 34. Nb5 {[%clk 0:00:16]}  Ke4 {[%clk 0:01:34]} 35. Ke2 {[%clk 0:00:16]}  f4 {[%clk 0:01:35]} 36. Nc3+ {[%clk 0:00:16]}  Ke5 {[%clk 0:01:34]} 37. gxf4+ {[%clk 0:00:16]}  Kf5 {[%clk 0:01:35]} 38. Kf3 {[%clk 0:00:17]}  Ke6 {[%clk 0:01:36]} 39. e4 {[%clk 0:00:17]}  Ke7 {[%clk 0:01:37]} 40. Ke3 {[%clk 0:00:18]}  Ke8 {[%clk 0:01:38]} 41. Kd4 {[%clk 0:00:18]}  Kf8 {[%clk 0:01:39]} 42. Kxc4 {[%clk 0:00:19]}  Kg8 {[%clk 0:01:40]} 43. Kd5 {[%clk 0:00:20]}  Kh8 {[%clk 0:01:41]} 44. Kd6 {[%clk 0:00:20]}  Kg8 {[%clk 0:01:42]} 45. e5 {[%clk 0:00:21]}  Kf8 {[%clk 0:01:43]} 46. e6 {[%clk 0:00:21]}  Ke8 {[%clk 0:01:43]} 47. Nd5 {[%clk 0:00:21]}  Kd8 {[%clk 0:01:44]} 48. e7+ {[%clk 0:00:22]}  Kc8 {[%clk 0:01:45]} 49. e8=Q+ {[%clk 0:00:22]}  Kb7 {[%clk 0:01:45]} 50. Qc6+ {[%clk 0:00:22]}  Kb8 {[%clk 0:01:45]} 51. Qb6+ {[%clk 0:00:22]} 1-0


[Site "https://www.chess.com"]

[Event "Titled Tuesday Blitz June 28 Early 2022"]
[White "Yang, Kaiqi"]
[Black "Ladan, Nicholas"]
[WhiteFideId "8604398"]
[BlackFideId "30918855"]
[WhiteElo "2373"]
[BlackElo "2167"]
[Result "1-0"]
[Round "05"]
[TimeControl "180+1"]
[Date "2022.06.28"]
[WhiteClock "0:00:09"]
[BlackClock "0:00:02"]

1. d4 {[%clk 0:03:00]}  d5 {[%clk 0:02:59]} 2. c4 {[%clk 0:03:00]}  e6 {[%clk 0:03:00]} 3. g3 {[%clk 0:02:57]}  Nf6 {[%clk 0:02:59]} 4. Bg2 {[%clk 0:02:57]}  Bb4+ {[%clk 0:02:58]} 5. Nd2 {[%clk 0:02:56]}  O-O {[%clk 0:02:48]} 6. Nf3 {[%clk 0:02:55]}  b6 {[%clk 0:02:48]} 7. O-O {[%clk 0:02:54]}  Bb7 {[%clk 0:02:48]} 8. Ne5 {[%clk 0:02:47]}  Nbd7 {[%clk 0:02:44]} 9. Nd3 {[%clk 0:02:47]}  Bxd2 {[%clk 0:02:42]} 10. Bxd2 {[%clk 0:02:46]}  Ne4 {[%clk 0:02:41]} 11. cxd5 {[%clk 0:02:41]}  Bxd5 {[%clk 0:02:33]} 12. Be3 {[%clk 0:02:26]}  Nd6 {[%clk 0:02:21]} 13. f3 {[%clk 0:02:13]}  f5 {[%clk 0:02:13]} 14. Bf2 {[%clk 0:02:10]}  Qe7 {[%clk 0:02:04]} 15. Rc1 {[%clk 0:02:07]}  Rac8 {[%clk 0:02:00]} 16. Nb4 {[%clk 0:01:55]}  Nf6 {[%clk 0:01:53]} 17. Nc6 {[%clk 0:01:38]}  Qd7 {[%clk 0:01:46]} 18. Ne5 {[%clk 0:01:38]}  Qb5 {[%clk 0:01:41]} 19. b3 {[%clk 0:01:36]}  Rfd8 {[%clk 0:01:35]} 20. Qd3 {[%clk 0:01:31]}  Qxd3 {[%clk 0:01:22]} 21. Nxd3 {[%clk 0:01:32]}  a5 {[%clk 0:01:19]} 22. Rc2 {[%clk 0:01:30]}  Kf7 {[%clk 0:01:14]} 23. Rfc1 {[%clk 0:01:29]}  Rd7 {[%clk 0:01:08]} 24. Ne5+ {[%clk 0:01:29]}  Ke8 {[%clk 0:01:07]} 25. Nxd7 {[%clk 0:01:29]}  Kxd7 {[%clk 0:01:08]} 26. h3 {[%clk 0:01:20]}  g5 {[%clk 0:00:59]} 27. g4 {[%clk 0:00:59]}  h5 {[%clk 0:00:51]} 28. Bg3 {[%clk 0:00:52]}  hxg4 {[%clk 0:00:45]} 29. hxg4 {[%clk 0:00:51]}  fxg4 {[%clk 0:00:41]} 30. Bxd6 {[%clk 0:00:48]}  Kxd6 {[%clk 0:00:39]} 31. e4 {[%clk 0:00:38]}  gxf3 {[%clk 0:00:22]} 32. exd5 {[%clk 0:00:38]}  fxg2 {[%clk 0:00:22]} 33. dxe6 {[%clk 0:00:37]}  c5 {[%clk 0:00:18]} 34. dxc5+ {[%clk 0:00:36]}  bxc5 {[%clk 0:00:18]} 35. Re1 {[%clk 0:00:36]}  Ke7 {[%clk 0:00:16]} 36. Rxg2 {[%clk 0:00:35]}  g4 {[%clk 0:00:16]} 37. Rc2 {[%clk 0:00:20]}  a4 {[%clk 0:00:16]} 38. bxa4 {[%clk 0:00:20]}  c4 {[%clk 0:00:16]} 39. a5 {[%clk 0:00:17]}  Rc5 {[%clk 0:00:16]} 40. a6 {[%clk 0:00:17]}  Rc6 {[%clk 0:00:14]} 41. a7 {[%clk 0:00:17]}  Ra6 {[%clk 0:00:14]} 42. Rxc4 {[%clk 0:00:17]}  Rxa7 {[%clk 0:00:15]} 43. a4 {[%clk 0:00:17]}  Ne8 {[%clk 0:00:13]} 44. Rxg4 {[%clk 0:00:16]}  Ra6 {[%clk 0:00:11]} 45. Rge4 {[%clk 0:00:11]}  Nd6 {[%clk 0:00:10]} 46. Rh4 {[%clk 0:00:11]}  Ne8 {[%clk 0:00:10]} 47. Rh7+ {[%clk 0:00:11]}  Kd6 {[%clk 0:00:10]} 48. Rd7+ {[%clk 0:00:10]}  Kc6 {[%clk 0:00:10]} 49. Rc1+ {[%clk 0:00:09]}  Kb6 {[%clk 0:00:10]} 50. Re7 {[%clk 0:00:10]}  Nd6 {[%clk 0:00:05]} 51. Rd7 {[%clk 0:00:09]}  Ne8 {[%clk 0:00:04]} 52. Rd8 {[%clk 0:00:09]}  Nf6 {[%clk 0:00:03]} 53. e7 {[%clk 0:00:09]}  Rxa4 {[%clk 0:00:02]} 54. Rd6+ {[%clk 0:00:08]}  Kb7 {[%clk 0:00:01]} 55. Rxf6 {[%clk 0:00:09]}  Rg4+ {[%clk 0:00:02]} 56. Kf2 {[%clk 0:00:08]}  Re4 {[%clk 0:00:03]} 57. Rf7 {[%clk 0:00:09]}  Kb6 {[%clk 0:00:02]} 58. Re1 {[%clk 0:00:09]}  Rf4+ {[%clk 0:00:02]} 1-0


[Site "https://www.chess.com"]